fUSD/lending_fUSD_20251115
["ID","MTS","AMOUNT","RATE_DAILY","PERIOD"]
[393990965,1763165247903,151.1,0.00013602,2]
[393990966,1763165247975,320.74051982,0.00041556,30]
[393990967,1763165248152,151.1,0.00014358,2]
[393990968,1763165248319,151.1,0.00015113,2]
[393990969,1763165248548,332.60791905,0.00041556,30]
[393990970,1763165249154,344.91441206,0.00041556,30]
[393990971,1763165249816,357.6762453,0.00041556,30]
[393990972,1763165250420,370.91026638,0.00041556,30]
[393990973,1763165250638,150.0,0.00041556,120]
[393990974,1763165251022,384.63394623,0.00041556,30]
[393990975,1763165251692,384.63394623,0.00041556,30]
[393990976,1763165261605,150.0,0.00041556,120]
[393990977,1763165272608,150.0,0.00041556,120]
[393990978,1763165283550,150.0,0.00041556,120]
[393990979,1763165285625,151.0,0.00041556,120]
[393990980,1763165285705,151.0,0.00041556,120]
[393990981,1763165285781,151.0,0.00041556,120]
[393990982,1763165285860,500.0,0.00041556,120]
[393990983,1763165286025,300.0,0.00041556,120]
[393990984,1763165286301,500.0,0.00041556,120]
[393990985,1763165286376,151.0,0.00041556,120]
[393990986,1763165286448,151.0,0.00041556,120]
[393990987,1763165286526,500.0,0.00041556,120]
[393990988,1763165286630,311.1,0.00041556,120]
[393990989,1763165286905,500.0,0.00041556,120]
[393990990,1763165286983,151.0,0.00041556,120]
[393990991,1763165287058,151.0,0.00041556,120]
[393990992,1763165287139,500.0,0.00041556,120]
[393990993,1763165287235,322.6107,0.00041556,120]
[393990994,1763165287657,500.0,0.00041556,120]
[393990995,1763165287733,151.0,0.00041556,120]
[393990996,1763165287805,151.0,0.00041556,120]
[393990997,1763165287877,500.0,0.00041556,120]
[393990998,1763165287968,322.6107,0.00041556,120]
[393990999,1763165288087,250.0,0.00041556,120]
[393991000,1763165288173,500.0,0.00041556,120]
[393991001,1763165288253,151.0,0.00041556,120]
[393991002,1763165288335,151.0,0.00041556,120]
[393991003,1763165288418,500.0,0.00041556,120]
[393991004,1763165288739,151.0,0.00041556,120]
[393991005,1763165288821,500.0,0.00041556,120]
[393991006,1763165288938,151.0,0.00041556,120]
[393991007,1763165289032,151.0,0.00041556,120]
[393991008,1763165289120,250.0,0.00041556,120]
[393991009,1763165289219,500.0,0.00041556,120]
[393991010,1763165289363,151.0,0.00041556,120]
[393991011,1763165289456,250.0,0.00041556,120]
[393991012,1763165289542,151.0,0.00041556,120]
[393991013,1763165289659,151.0,0.00041556,120]
[393991014,1763165289755,500.0,0.00041556,120]
[393991015,1763165289958,151.0,0.00041556,120]
[393991016,1763165290075,250.0,0.00041556,120]
[393991017,1763165290151,151.0,0.00041556,120]
[393991018,1763165290223,151.0,0.00041556,120]
[393991019,1763165290699,250.0,0.00041556,120]
[393991020,1763165290779,500.0,0.00041556,120]
[393991021,1763165290862,151.0,0.00041556,120]
[393991022,1763165290996,151.0,0.00041556,120]
[393991023,1763165291092,500.0,0.00041556,120]
[393991024,1763165291176,250.0,0.00041556,120]
[393991025,1763165291545,500.0,0.00041556,120]
[393991026,1763165291625,151.0,0.00041556,120]
[393991027,1763165291707,151.0,0.00041556,120]
[393991028,1763165291778,250.0,0.00041556,120]
[393991029,1763165291851,250.0,0.00041556,120]
[393991030,1763165291969,500.0,0.00041556,120]
[393991031,1763165292049,500.0,0.00041556,120]
[393991032,1763165292181,250.0,0.00041556,120]
[393991033,1763165292272,151.0,0.00041556,120]
[393991034,1763165292446,250.0,0.00041556,120]
[393991035,1763165292574,500.0,0.00041556,120]
[393991036,1763165292648,500.0,0.00041556,120]
[393991037,1763165292853,250.0,0.00041556,120]
[393991038,1763165292928,500.0,0.00041556,120]
[393991039,1763165293004,151.0,0.00041556,120]
[393991040,1763165293093,250.0,0.00041556,120]
[393991041,1763165293229,500.0,0.00041556,120]
[393991042,1763165293303,500.0,0.00041556,120]
[393991043,1763165293535,500.0,0.00041556,120]
[393991044,1763165293611,151.0,0.00041556,120]
[393991045,1763165293708,250.0,0.00041556,120]
[393991046,1763165293807,250.0,0.00041556,120]
[393991047,1763165293893,500.0,0.00041556,120]
[393991048,1763165293977,500.0,0.00041556,120]
[393991049,1763165294112,500.0,0.00041556,120]
[393991050,1763165294186,151.0,0.00041556,120]
[393991051,1763165294271,250.0,0.00041556,120]
[393991052,1763165294348,250.0,0.00041556,120]
[393991053,1763165294474,500.0,0.00041556,120]
[393991054,1763165294548,500.0,0.00041556,120]
[393991055,1763165294627,414.0,0.00041556,120]
[393991056,1763165294721,500.0,0.00041556,120]
[393991057,1763165294803,151.0,0.00041556,120]
[393991058,1763165294877,250.0,0.00041556,120]
[393991059,1763165294955,250.0,0.00041556,120]
[393991060,1763165295112,500.0,0.00041556,120]
[393991061,1763165295218,500.0,0.00041556,120]
[393991062,1763165295293,429.318,0.00041556,120]
[393991063,1763165295371,500.0,0.00041556,120]
[393991064,1763165295449,151.0,0.00041556,120]
[393991065,1763165295525,250.0,0.00041556,120]
[393991066,1763165295622,250.0,0.00041556,120]
[393991067,1763165295739,500.0,0.00041556,120]
[393991068,1763165295848,500.0,0.00041556,120]
[393991069,1763165295935,445.202766,0.00041556,120]
[393991070,1763165296026,500.0,0.00041556,120]
[393991071,1763165296113,151.0,0.00041556,120]
[393991072,1763165296196,250.0,0.00041556,120]
[393991073,1763165296280,250.0,0.00041556,120]
[393991074,1763165296466,500.0,0.00041556,120]
[393991075,1763165296554,461.67526834,0.00041556,120]
[393991076,1763165296655,500.0,0.00041556,120]
[393991077,1763165296737,151.0,0.00041556,120]
[393991078,1763165296866,250.0,0.00041556,120]
[393991079,1763165296955,250.0,0.00041556,120]
[393991080,1763165297111,478.75725327,0.00041556,120]
[393991081,1763165297221,500.0,0.00041556,120]
[393991082,1763165297306,151.0,0.00041556,120]
[393991083,1763165297391,500.0,0.00041556,120]
[393991084,1763165297488,250.0,0.00041556,120]
[393991085,1763165297567,250.0,0.00041556,120]
[393991086,1763165298138,496.47127164,0.00041556,120]
[393991087,1763165298227,500.0,0.00041556,120]
[393991088,1763165298324,500.0,0.00041556,120]
[393991089,1763165298410,151.0,0.00041556,120]
[393991090,1763165298510,250.0,0.00041556,120]
[393991091,1763165298599,250.0,0.00041556,120]
[393991092,1763165298697,514.84070869,0.00041556,120]
[393991093,1763165298792,500.0,0.00041556,120]
[393991094,1763165298880,500.0,0.00041556,120]
[393991095,1763165298964,250.0,0.00041556,120]
[393991096,1763165299051,250.0,0.00041556,120]
[393991097,1763165299133,533.88981491,0.00041556,120]
[393991098,1763165299217,500.0,0.00041556,120]
[393991099,1763165299298,500.0,0.00041556,120]
[393991100,1763165299394,250.0,0.00041556,120]
[393991101,1763165299474,250.0,0.00041556,120]
[393991102,1763165299583,553.64373807,0.00041556,120]
[393991103,1763165299722,500.0,0.00041556,120]
[393991104,1763165300148,500.0,0.00041556,120]
[393991105,1763165300246,250.0,0.00041556,120]
[393991106,1763165300328,250.0,0.00041556,120]
[393991107,1763165300417,574.12855637,0.00041556,120]
[393991108,1763165300508,500.0,0.00041556,120]
[393991109,1763165300588,500.0,0.00041556,120]
[393991110,1763165300673,250.0,0.00041556,120]
[393991111,1763165300747,250.0,0.00041556,120]
[393991112,1763165300856,574.12855637,0.00041556,120]
[393991113,1763165301006,500.0,0.00041556,120]
[393991114,1763165301084,500.0,0.00041556,120]
[393991115,1763165301158,250.0,0.00041556,120]
[393991116,1763165301626,500.0,0.00041556,120]
[393991117,1763165301794,250.0,0.00041556,120]
[393991118,1763165302372,500.0,0.00041556,120]
[393991119,1763165303001,500.0,0.00041556,120]
[393991120,1763165303778,205.00708788,0.00041556,120]
[393991121,1763165303861,151.0,0.00041556,120]
[393991122,1763165304597,151.0,0.00041556,120]
[393991123,1763165305229,151.0,0.00041556,120]
[393991124,1763165305996,151.0,0.00041556,120]
[393991125,1763165306603,151.0,0.00041556,120]
[393991126,1763165307212,151.0,0.00041556,120]
[393991127,1763165307841,151.0,0.00041556,120]
[393991128,1763165308653,151.0,0.00041556,120]
[393991129,1763165309314,151.0,0.00041556,120]
[393991130,1763165309580,250.0,0.00041556,120]
[393991131,1763165309916,151.0,0.00041556,120]
[393991132,1763165310185,250.0,0.00041556,120]
[393991133,1763165310657,151.0,0.00041556,120]
[393991134,1763165310816,250.0,0.00041556,120]
[393991135,1763165311356,151.0,0.00041556,120]
[393991136,1763165311445,250.0,0.00041556,120]
[393991137,1763165312058,250.0,0.00041556,120]
[393991138,1763165312396,151.0,0.00041556,120]
[393991139,1763165312693,250.0,0.00041556,120]
[393991140,1763165313147,151.0,0.00041556,120]
[393991141,1763165313309,250.0,0.00041556,120]
[393991142,1763165313643,151.0,0.00041556,120]
[393991143,1763165314300,151.0,0.00041556,120]
[393991144,1763165314438,250.0,0.00041556,120]
[393991145,1763165314978,151.0,0.00041556,120]
[393991146,1763165315061,250.0,0.00041556,120]
[393991147,1763165315588,151.0,0.00041556,120]
[393991148,1763165315697,250.0,0.00041556,120]
[393991149,1763165316221,151.0,0.00041556,120]
[393991150,1763165316341,250.0,0.00041556,120]
[393991151,1763165316655,161.66713131,0.00041556,120]
[393991152,1763165316845,151.0,0.00041556,120]
[393991153,1763165316957,250.0,0.00041556,120]
[393991154,1763165317582,250.0,0.00041556,120]
[393991155,1763165318216,250.0,0.00041556,120]
[393991156,1763165318860,250.0,0.00041556,120]
[393991157,1763165319487,250.0,0.00041556,120]
[393991158,1763165319984,160.03601013,0.00041556,120]
[393991159,1763165320122,250.0,0.00041556,120]
[393991160,1763165320197,151.0,0.00041556,120]
[393991161,1763165320760,250.0,0.00041556,120]
[393991162,1763165320860,151.0,0.00041556,120]
[393991163,1763165323295,250.0,0.00041556,120]
[393991164,1763165324041,250.0,0.00041556,120]
[393991165,1763165324231,200.0,0.00041556,30]
[393991166,1763165324747,250.0,0.00041556,120]
[393991167,1763165324944,207.4,0.00041556,30]
[393991168,1763165325554,250.0,0.00041556,120]
[393991169,1763165325700,215.0738,0.00041556,30]
[393991170,1763165326181,250.0,0.00041556,120]
[393991171,1763165326324,223.0315306,0.00041556,30]
[393991172,1763165327100,250.0,0.00041556,120]
[393991173,1763165327206,231.28369723,0.00041556,30]
[393991174,1763165327480,250.0,0.00041556,120]
[393991175,1763165327628,239.84119403,0.00041556,30]
[393991176,1763165328235,248.71531821,0.00041556,30]
[393991177,1763165329143,257.91778498,0.00041556,30]
[393991178,1763165329663,267.46074303,0.00041556,30]
[393991179,1763165330318,277.35679052,0.00041556,30]
[393991180,1763165330960,287.61899177,0.00041556,30]
[393991181,1763165331573,298.26089446,0.00041556,30]
[393991182,1763165332182,309.29654756,0.00041556,30]
[393991183,1763165332818,320.74051982,0.00041556,30]
[393991184,1763165333483,332.60791905,0.00041556,30]
[393991185,1763165333922,228.29,0.0002487,120]
[393991186,1763165334076,344.91441206,0.00041556,30]
[393991187,1763165334701,357.6762453,0.00041556,30]
[393991188,1763165335334,370.91026638,0.00041556,30]
[393991189,1763165336031,370.91026638,0.00041556,30]
[393991190,1763165339636,151.0,0.00041556,120]
[393991191,1763165340286,151.0,0.00041556,120]
[393991192,1763165340890,151.0,0.00041556,120]
[393991193,1763165341499,151.0,0.00041556,120]
[393991194,1763165342130,151.0,0.00041556,120]
[393991195,1763165342778,151.0,0.00041556,120]
[393991196,1763165343396,151.0,0.00041556,120]
[393991197,1763165344153,200.0,0.00041556,120]
[393991198,1763165346581,250.0,0.00041556,120]
[393991199,1763165347187,250.0,0.00041556,120]
[393991200,1763165347789,250.0,0.00041556,120]
[393991201,1763165348414,250.0,0.00041556,120]
[393991202,1763165349059,250.0,0.00041556,120]
[393991203,1763165363619,1000.0,0.00013699,2]
[393991204,1763165368535,174.67243879,0.00041556,60]
[393991207,1763165406566,500.0,0.00041556,120]
[393991208,1763165406682,151.0,0.00041556,120]
[393991209,1763165407192,500.0,0.00041556,120]
[393991210,1763165407313,151.0,0.00041556,120]
[393991211,1763165407815,500.0,0.00041556,120]
[393991212,1763165408247,151.0,0.00041556,120]
[393991213,1763165408558,151.0,0.00041556,120]
[393991214,1763165408953,500.0,0.00041556,120]
[393991215,1763165409170,151.0,0.00041556,120]
[393991216,1763165409683,500.0,0.00041556,120]
[393991217,1763165409791,151.0,0.00041556,120]
[393991218,1763165410405,151.0,0.00041556,120]
[393991219,1763165411041,151.0,0.00041556,120]
[393991220,1763165411662,500.0,0.00041556,120]
[393991221,1763165411742,151.0,0.00041556,120]
[393991222,1763165412324,151.0,0.00041556,120]
[393991223,1763165412842,500.0,0.00041556,120]
[393991224,1763165412992,151.0,0.00041556,120]
[393991225,1763165413583,500.0,0.00041556,120]
[393991226,1763165413710,151.0,0.00041556,120]
[393991227,1763165413948,250.0,0.00041556,120]
[393991228,1763165414223,500.0,0.00041556,120]
[393991229,1763165414310,151.0,0.00041556,120]
[393991230,1763165414779,250.0,0.00041556,120]
[393991231,1763165414873,500.0,0.00041556,120]
[393991232,1763165414983,151.0,0.00041556,120]
[393991233,1763165415435,250.0,0.00041556,120]
[393991234,1763165415518,500.0,0.00041556,120]
[393991235,1763165415621,151.0,0.00041556,120]
[393991236,1763165415747,169.99179,0.00041556,60]
[393991237,1763165416174,191.15171,0.00041556,60]
[393991238,1763165416254,250.0,0.00041556,120]
[393991239,1763165416337,151.0,0.00041556,120]
[393991240,1763165416416,500.0,0.00041556,120]
[393991241,1763165416518,191.15171,0.00041556,60]
[393991242,1763165416855,250.0,0.00041556,120]
[393991243,1763165416947,500.0,0.00041556,120]
[393991244,1763165417041,151.0,0.00041556,120]
[393991245,1763165417602,250.0,0.00041556,120]
[393991246,1763165417697,151.0,0.00041556,120]
[393991247,1763165417769,500.0,0.00041556,120]
[393991248,1763165418240,250.0,0.00041557,120]
[393991249,1763165418333,151.0,0.00041557,120]
[393991250,1763165418932,250.0,0.00041557,120]
[393991251,1763165419013,151.0,0.00041557,120]
[393991252,1763165419753,250.0,0.00041557,120]
[393991253,1763165420427,250.0,0.00041557,120]
[393991254,1763165421278,250.0,0.00041557,120]
[393991255,1763165421913,250.0,0.00041557,120]
[393991256,1763165422547,250.0,0.00041557,120]
[393991257,1763165423287,250.0,0.00041557,120]
[393991258,1763165423936,250.0,0.00041557,120]
[393991259,1763165424763,250.0,0.00041557,120]
[393991260,1763165425404,298.02956102,0.00041557,120]
[393991261,1763165425490,250.0,0.00041557,120]
[393991262,1763165426050,250.0,0.00041557,120]
[393991263,1763165426661,250.0,0.00041557,120]
[393991264,1763165427313,250.0,0.00041557,120]
[393991265,1763165430960,151.0,0.00041557,120]
[393991268,1763165431603,151.0,0.00041557,120]
[393991270,1763165431709,-151.1,0.00015869,2]
[393991271,1763165431718,-250.0,0.00016103,2]
[393991272,1763165431727,-10.10148159,0.00016437,2]
[393991273,1763165431740,-149.89851841,0.00016437,2]
[393991274,1763165431749,-596.83878539,0.00016438,2]
[393991275,1763165431761,-1075.43,0.00016438,2]
[393991276,1763165431772,-185.98121461,0.00016438,2]
[393991277,1763165431781,-228.29,0.0001658,2]
[393991278,1763165431791,-500.0,0.00016607,2]
[393991279,1763165431801,-1000.0,0.00016607,2]
[393991280,1763165431810,-151.1,0.00016625,2]
[393991281,1763165431820,-200.0,0.00016697,2]
[393991282,1763165431829,-1200.0,0.00016706,2]
[393991283,1763165431838,-2639.9,0.00016707,2]
[393991284,1763165431848,-300.0,0.00016731,2]
[393991285,1763165431856,-300.0,0.00016731,2]
[393991286,1763165431866,-5999.75,0.00016872,2]
[393991287,1763165431875,-500.0,0.00016932,2]
[393991288,1763165431884,-188.72,0.00016975,2]
[393991289,1763165431895,-300.0,0.00016982,2]
[393991290,1763165431904,-151.0,0.00016983,2]
[393991291,1763165431913,-151.0,0.00016983,2]
[393991292,1763165431923,-151.0,0.00016983,2]
[393991294,1763165431932,-151.0,0.00016983,2]
[393991296,1763165431941,-151.0,0.00016983,2]
[393991297,1763165431950,-151.0,0.00016983,2]
[393991298,1763165431960,-151.0,0.00016983,2]
[393991299,1763165431969,-151.0,0.00016983,2]
[393991300,1763165431979,-151.0,0.00016983,2]
[393991301,1763165431988,-151.0,0.00016983,2]
[393991302,1763165431998,-151.0,0.00016983,2]
[393991303,1763165432010,-151.0,0.00016983,2]
[393991304,1763165432020,-151.0,0.00016983,2]
[393991305,1763165432272,-151.0,0.00016983,2]
[393991306,1763165432284,-151.0,0.00016983,2]
[393991307,1763165432294,-151.0,0.00016983,2]
[393991308,1763165432306,-151.0,0.00016983,2]
[393991309,1763165432315,-151.0,0.00016983,2]
[393991310,1763165432324,-151.0,0.00016983,2]
[393991311,1763165432334,-151.0,0.00016983,2]
[393991312,1763165432343,-1275.0,0.00016993,2]
[393991313,1763165432354,-831.532,0.00016993,2]
[393991314,1763165432363,-907.0,0.00016993,2]
[393991315,1763165432373,-1190.0,0.00016993,2]
[393991316,1763165432383,-250.0,0.00017,2]
[393991317,1763165432393,-800.0,0.00017,6]
[393991318,1763165432407,-322.74,0.00017003,2]
[393991319,1763165432418,-500.0,0.00017014,2]
[393991320,1763165432428,-250.0,0.00017056,2]
[393991321,1763165432437,-1600.0,0.000171,6]
[393991322,1763165432447,-419.2814,0.00017151,2]
[393991323,1763165432458,-500.0,0.00017175,2]
[393991324,1763165432467,-500.0,0.00017175,2]
[393991325,1763165432477,-500.0,0.00017175,2]
[393991326,1763165432487,-150.0,0.00017178,2]
[393991327,1763165432497,-150.0,0.00017178,2]
[393991328,1763165432506,-150.0,0.00017178,2]
[393991329,1763165432516,-416.5,0.00017178,2]
[393991330,1763165432527,-169.81,0.00017178,2]
[393991331,1763165432537,-416.5,0.00017178,2]
[393991332,1763165432548,-150.0,0.00017178,2]
[393991333,1763165432557,-150.0,0.00017178,2]
[393991334,1763165432567,-150.0,0.00017178,2]
[393991335,1763165432577,-150.0,0.00017178,2]
[393991336,1763165432586,-150.0,0.00017178,2]
[393991337,1763165432595,-150.0,0.00017178,2]
[393991338,1763165432605,-416.5,0.00017178,2]
[393991339,1763165432614,-150.0,0.00017178,2]
[393991340,1763165432625,-150.0,0.00017178,2]
[393991341,1763165432635,-416.5,0.00017178,2]
[393991342,1763165432644,-150.0,0.00017178,2]
[393991343,1763165432655,-150.0,0.00017178,2]
[393991344,1763165432664,-150.0,0.00017178,2]
[393991345,1763165432674,-301.21,0.00017178,2]
[393991346,1763165432685,-416.5,0.00017178,2]
[393991347,1763165432694,-150.0,0.00017178,2]
[393991348,1763165432703,-150.0,0.00017178,2]
[393991349,1763165432712,-416.5,0.00017178,2]
[393991350,1763165432721,-150.0,0.00017178,2]
[393991351,1763165432730,-2500.0,0.000172,6]
[393991352,1763165432740,-371.1,0.00017278,2]
[393991353,1763165432749,-3300.0,0.000173,6]
[393991354,1763165432758,-1263.0,0.00017317,2]
[393991355,1763165432768,-189.28291338,0.00017399,2]
[393991356,1763165432778,-500.0,0.00017399,2]
[393991357,1763165432787,-529.8983703,0.00017399,2]
[393991358,1763165432796,-4100.0,0.000174,6]
[393991359,1763165432806,-150.0,0.00017452,2]
[393991360,1763165432815,-300.0,0.00017452,2]
[393991361,1763165432825,-300.0,0.00017456,2]
[393991362,1763165432835,-300.0,0.00017456,2]
[393991363,1763165432844,-300.0,0.00017456,2]
[393991364,1763165432854,-300.0,0.00017456,2]
[393991365,1763165432864,-443.070284,0.00017456,2]
[393991366,1763165432873,-250.0,0.00017456,2]
[393991367,1763165432883,-250.0,0.00017456,2]
[393991368,1763165432893,-800.0,0.000175,6]
[393991369,1763165432904,-1263.0,0.00017532,2]
[393991370,1763165432913,-503.0,0.00017534,2]
[393991371,1763165432923,-1571.4149822,0.00017559,2]
[393991372,1763165432933,-800.0,0.000176,6]
[393991373,1763165432942,-168.0,0.00017619,2]
[393991374,1763165432951,-166.66,0.00017655,2]
[393991375,1763165432961,-800.0,0.000177,6]
[393991376,1763165432970,-6669.0,0.0001771,2]
[393991377,1763165432979,-6486.0,0.0001771,2]
[393991378,1763165432989,-1603.0,0.0001771,2]
[393991379,1763165432999,-255.38400885,0.00017723,2]
[393991380,1763165433011,-1000.0,0.00017723,2]
[393991381,1763165433021,-88642.87076958,0.00017773,2]
[393991382,1763165433312,-383.78397968,0.00017773,2]
[393991383,1763165433340,-577.23424904,0.00017773,2]
[393991384,1763165433357,-271.414428,0.00017773,2]
[393991385,1763165433380,-312.0,0.00017773,2]
[393991386,1763165433397,-15454.64378007,0.00017773,2]
[393991387,1763165433508,151.0,0.00041557,120]
[393991388,1763165433718,151.0,0.00041557,120]
[393991389,1763165434094,151.0,0.00041557,120]
[393991390,1763165434682,151.0,0.00041557,120]
[393991391,1763165435337,151.0,0.00041557,120]
[393991392,1763165435976,151.0,0.00041557,120]
[393991393,1763165436470,151.4131709,0.00041557,120]
[393991394,1763165436600,151.0,0.00041557,120]
[393991395,1763165437231,151.0,0.00041557,120]
[393991405,1763165437856,151.0,0.00041557,120]
[393991406,1763165437884,-289.39808043,0.0001714,2]
[393991458,1763165438533,151.0,0.00041557,120]
[393991480,1763165439098,151.0,0.00041557,120]
[393991484,1763165439724,151.0,0.00041557,120]
[393991485,1763165439786,-47.13191957,0.0001714,2]
[393991486,1763165439796,-336.53,0.00017277,2]
[393991487,1763165439805,-336.53,0.00017414,2]
[393991488,1763165439815,-336.55,0.00017551,2]
[393991489,1763165439825,-238.29817258,0.000177,2]
[393991490,1763165439834,-560.0,0.0001771,2]
[393991491,1763165439843,-381.45652252,0.00017772,2]
[393991492,1763165439853,-249441.50689363,0.00017773,2]
[393991493,1763165439863,-1627.204,0.000178,2]
[393991494,1763165439873,-730.66084711,0.000178,2]
[393991495,1763165439883,-1000.0,0.000178,2]
[393991496,1763165439893,-974.28410433,0.000178,2]
[393991497,1763165439908,-800.0,0.000178,6]
[393991498,1763165439921,-1958.0,0.00017809,2]
[393991499,1763165439931,-974.28410425,0.00017811,2]
[393991500,1763165439941,-974.28410425,0.00017822,2]
[393991501,1763165439952,-974.28410425,0.00017833,2]
[393991502,1763165439961,-2500.0,0.00017838,3]
[393991503,1763165439971,-974.28410425,0.00017844,2]
[393991504,1763165439981,-2500.0,0.00017847,3]
[393991505,1763165439992,-200.0,0.00017855,2]
[393991506,1763165440002,-200.0,0.00017855,2]
[393991507,1763165440013,-974.28410425,0.00017856,2]
[393991508,1763165440025,-200.0,0.00017856,2]
[393991509,1763165440035,-200.0,0.00017856,2]
[393991513,1763165440263,-200.0,0.00017856,2]
[393991514,1763165440274,-200.0,0.00017856,2]
[393991515,1763165440284,-150.0,0.00017856,2]
[393991516,1763165440293,-500.0,0.00017856,2]
[393991517,1763165440303,-150.0,0.00017856,2]
[393991518,1763165440312,-500.0,0.00017856,2]
[393991519,1763165440322,-150.0,0.00017856,2]
[393991520,1763165440331,-150.0,0.00017856,2]
[393991521,1763165440341,-500.0,0.00017856,2]
[393991522,1763165440350,-150.0,0.00017856,2]
[393991523,1763165440359,-500.0,0.00017856,2]
[393991524,1763165440368,-500.0,0.00017856,2]
[393991525,1763165440378,-1028.55,0.00017856,2]
[393991526,1763165440387,-150.0,0.00017856,2]
[393991527,1763165440398,-150.0,0.00017856,2]
[393991528,1763165440409,-150.0,0.00017856,2]
[393991529,1763165440419,-150.0,0.00017856,2]
[393991530,1763165440437,-150.0,0.00017856,2]
[393991531,1763165440450,-150.0,0.00017856,2]
[393991532,1763165440461,-154.81792119,0.00017856,2]
[393991533,1763165440471,-150.0,0.00017856,2]
[393991534,1763165440480,-150.0,0.00017856,2]
[393991535,1763165440490,-2500.0,0.00017856,3]
[393991536,1763165440500,-150.0,0.00017856,2]
[393991537,1763165440510,-500.0,0.00017856,2]
[393991538,1763165440520,-281.75197015,0.00017856,2]
[393991539,1763165440530,-150.0,0.00017856,2]
[393991540,1763165440541,-500.0,0.00017856,2]
[393991541,1763165440550,-2500.0,0.00017865,3]
[393991542,1763165440561,-974.28410425,0.00017867,2]
[393991543,1763165440571,-203.34167533,0.00017871,2]
[393991544,1763165440580,-5888.0,0.00017872,2]
[393991545,1763165440593,-171.45639953,0.00017873,2]
[393991546,1763165440603,-500.0,0.00017873,2]
[393991547,1763165440613,-505.72343968,0.00017873,2]
[393991548,1763165440623,-500.0,0.00017873,2]
[393991549,1763165440633,-500.0,0.00017873,2]
[393991550,1763165440643,-500.0,0.00017873,2]
[393991551,1763165440656,-439.0,0.00017873,2]
[393991552,1763165440666,-2500.0,0.00017874,3]
[393991553,1763165440676,-974.28410425,0.00017878,2]
[393991554,1763165440686,-150.0,0.00017878,2]
[393991555,1763165440695,-264.501,0.00017878,2]
[393991556,1763165440705,-250.0,0.00017878,2]
[393991557,1763165440715,-200.0,0.00017878,2]
[393991558,1763165440725,-261.861,0.00017878,2]